[Event "Titled Tuesday Blitz January 10 Early 2023"]
[White "Topalov, Aleksandar"]
[Black "Subelj, Jan"]
[WhiteFideId "925659"]
[BlackFideId "14618583"]
[WhiteElo "2233"]
[BlackElo "2513"]
[Result "1/2-1/2"]
[Round "01"]
[TimeControl "180+2"]
[Date "2023.01.10"]
[WhiteClock "0:00:04"]
[BlackClock "0:00:32"]

1. b3 {[%clk 0:02:52]}  Nc6 {[%clk 0:02:59]} 2. Bb2 {[%clk 0:02:51]}  Nf6 {[%clk 0:03:00]} 3. c4 {[%clk 0:02:51]}  g6 {[%clk 0:02:58]} 4. e3 {[%clk 0:02:43]}  Bg7 {[%clk 0:02:58]} 5. Nf3 {[%clk 0:02:42]}  O-O {[%clk 0:02:57]} 6. Be2 {[%clk 0:02:43]}  d6 {[%clk 0:02:57]} 7. O-O {[%clk 0:02:40]}  e5 {[%clk 0:02:58]} 8. a3 {[%clk 0:02:37]}  a5 {[%clk 0:02:55]} 9. d3 {[%clk 0:02:36]}  Nh5 {[%clk 0:02:52]} 10. Nfd2 {[%clk 0:02:30]}  Qh4 {[%clk 0:02:51]} 11. Nf3 {[%clk 0:02:09]}  Qe7 {[%clk 0:02:48]} 12. Nfd2 {[%clk 0:02:09]}  Nf6 {[%clk 0:02:44]} 13. Nc3 {[%clk 0:02:09]}  Be6 {[%clk 0:02:43]} 14. Qc2 {[%clk 0:02:06]}  d5 {[%clk 0:02:30]} 15. cxd5 {[%clk 0:02:05]}  Nxd5 {[%clk 0:02:31]} 16. Nxd5 {[%clk 0:02:05]}  Bxd5 {[%clk 0:02:31]} 17. Ne4 {[%clk 0:02:01]}  f5 {[%clk 0:02:17]} 18. Nc5 {[%clk 0:02:01]}  b6 {[%clk 0:02:17]} 19. e4 {[%clk 0:01:59]}  Qxc5 {[%clk 0:01:48]} 20. Qxc5 {[%clk 0:01:58]}  bxc5 {[%clk 0:01:49]} 21. exd5 {[%clk 0:01:58]}  Nd4 {[%clk 0:01:50]} 22. Bxd4 {[%clk 0:01:57]}  cxd4 {[%clk 0:01:51]} 23. Bf3 {[%clk 0:01:51]}  Rab8 {[%clk 0:01:49]} 24. Rab1 {[%clk 0:01:51]}  Rfc8 {[%clk 0:01:46]} 25. Rfc1 {[%clk 0:01:49]}  Bf8 {[%clk 0:01:46]} 26. a4 {[%clk 0:01:25]}  Bd6 {[%clk 0:01:43]} 27. g4 {[%clk 0:01:19]}  Kf7 {[%clk 0:01:42]} 28. Rc6 {[%clk 0:01:17]}  Rb6 {[%clk 0:01:28]} 29. Rbc1 {[%clk 0:01:15]}  Rcb8 {[%clk 0:01:23]} 30. gxf5 {[%clk 0:01:03]}  gxf5 {[%clk 0:01:19]} 31. Rxb6 {[%clk 0:00:43]}  Rxb6 {[%clk 0:01:20]} 32. Rb1 {[%clk 0:00:42]}  Kf6 {[%clk 0:01:19]} 33. h4 {[%clk 0:00:32]}  Be7 {[%clk 0:01:07]} 34. Rc1 {[%clk 0:00:19]}  Bd6 {[%clk 0:01:07]} 35. Rb1 {[%clk 0:00:17]}  Rb8 {[%clk 0:01:06]} 36. Kf1 {[%clk 0:00:14]}  Re8 {[%clk 0:01:02]} 37. Re1 {[%clk 0:00:14]}  Bb4 {[%clk 0:01:01]} 38. Re2 {[%clk 0:00:13]}  Bc3 {[%clk 0:00:59]} 39. Bh5 {[%clk 0:00:06]}  Rb8 {[%clk 0:00:59]} 40. f4 {[%clk 0:00:04]}  exf4 {[%clk 0:00:56]} 41. Re6+ {[%clk 0:00:05]}  Kg7 {[%clk 0:00:57]} 42. Re7+ {[%clk 0:00:03]}  Kh6 {[%clk 0:00:56]} 43. Bd1 {[%clk 0:00:04]}  Rg8 {[%clk 0:00:53]} 44. Rxc7 {[%clk 0:00:04]}  Bd2 {[%clk 0:00:52]} 45. d6 {[%clk 0:00:03]}  Be3 {[%clk 0:00:51]} 46. d7 {[%clk 0:00:03]}  Rg1+ {[%clk 0:00:45]} 47. Ke2 {[%clk 0:00:04]}  Rg2+ {[%clk 0:00:45]} 48. Ke1 {[%clk 0:00:04]}  Rg1+ {[%clk 0:00:35]} 49. Ke2 {[%clk 0:00:03]}  Rg2+ {[%clk 0:00:33]} 50. Ke1 {[%clk 0:00:04]}  Rg1+ {[%clk 0:00:32]} 51. Ke2 {[%clk 0:00:04]} 1/2-1/2


[Site "https://www.chess.com"]

[Event "Titled Tuesday Blitz January 10 Early 2023"]
[White "Blohberger, Felix"]
[Black "Mogirzan, Matei-Valeriu"]
[WhiteFideId "1632051"]
[BlackFideId "1257455"]
[WhiteElo "2501"]
[BlackElo "1813"]
[Result "1-0"]
[Round "01"]
[TimeControl "180+2"]
[Date "2023.01.10"]
[WhiteClock "0:01:14"]
[BlackClock "0:00:03"]

1. e4 {[%clk 0:02:57]}  e5 {[%clk 0:02:52]} 2. Nf3 {[%clk 0:02:56]}  Nf6 {[%clk 0:02:51]} 3. d3 {[%clk 0:02:55]}  Bc5 {[%clk 0:02:50]} 4. Be2 {[%clk 0:02:55]}  Nc6 {[%clk 0:02:50]} 5. O-O {[%clk 0:02:55]}  d6 {[%clk 0:02:49]} 6. c3 {[%clk 0:02:53]}  O-O {[%clk 0:02:48]} 7. h3 {[%clk 0:02:47]}  Bb6 {[%clk 0:02:42]} 8. Nbd2 {[%clk 0:02:47]}  Nh5 {[%clk 0:02:37]} 9. Nc4 {[%clk 0:02:46]}  Nf4 {[%clk 0:02:14]} 10. Bxf4 {[%clk 0:02:44]}  exf4 {[%clk 0:02:15]} 11. d4 {[%clk 0:02:42]}  d5 {[%clk 0:02:13]} 12. exd5 {[%clk 0:02:41]}  Qxd5 {[%clk 0:02:14]} 13. a4 {[%clk 0:02:40]}  a6 {[%clk 0:02:00]} 14. Nxb6 {[%clk 0:02:39]}  cxb6 {[%clk 0:02:01]} 15. Bd3 {[%clk 0:02:31]}  f5 {[%clk 0:01:46]} 16. Re1 {[%clk 0:02:29]}  h6 {[%clk 0:01:44]} 17. Qe2 {[%clk 0:02:07]}  Qd8 {[%clk 0:01:25]} 18. d5 {[%clk 0:02:04]}  Nb8 {[%clk 0:01:14]} 19. Qe5 {[%clk 0:02:01]}  Nd7 {[%clk 0:00:57]} 20. Qxf4 {[%clk 0:01:57]}  Nf6 {[%clk 0:00:48]} 21. d6 {[%clk 0:01:56]}  Ne4 {[%clk 0:00:43]} 22. Rad1 {[%clk 0:01:50]}  Qf6 {[%clk 0:00:35]} 23. Bxe4 {[%clk 0:01:45]}  fxe4 {[%clk 0:00:36]} 24. Qxf6 {[%clk 0:01:38]}  Rxf6 {[%clk 0:00:33]} 25. Rxe4 {[%clk 0:01:39]}  Bd7 {[%clk 0:00:31]} 26. Ne5 {[%clk 0:01:37]}  Bf5 {[%clk 0:00:22]} 27. Rb4 {[%clk 0:01:29]}  a5 {[%clk 0:00:14]} 28. Rxb6 {[%clk 0:01:28]}  Bc2 {[%clk 0:00:14]} 29. Rd2 {[%clk 0:01:27]}  Bxa4 {[%clk 0:00:14]} 30. Rxb7 {[%clk 0:01:26]}  Re6 {[%clk 0:00:09]} 31. f4 {[%clk 0:01:23]}  Rf8 {[%clk 0:00:07]} 32. d7 {[%clk 0:01:18]}  Rd8 {[%clk 0:00:03]} 33. Rc7 {[%clk 0:01:13]}  Kf8 {[%clk 0:00:03]} 34. Rc8 {[%clk 0:01:13]}  Ke7 {[%clk 0:00:02]} 35. Rxd8 {[%clk 0:01:14]}  Kxd8 {[%clk 0:00:03]} 36. Nf7+ {[%clk 0:01:14]} 1-0


[Site "https://www.chess.com"]

[Event "Titled Tuesday Blitz January 10 Early 2023"]
[White "Starozhilov, Leonid"]
[Black "Langner, Ladislav"]
[WhiteFideId "14106752"]
[BlackFideId "300403"]
[WhiteElo "2313"]
[BlackElo "2368"]
[Result "1-0"]
[Round "01"]
[TimeControl "180+2"]
[Date "2023.01.10"]
[WhiteClock "0:00:55"]
[BlackClock "0:00:41"]

1. e4 {[%clk 0:03:00]}  c5 {[%clk 0:02:59]} 2. Nf3 {[%clk 0:03:00]}  e6 {[%clk 0:03:00]} 3. c4 {[%clk 0:03:00]}  Nc6 {[%clk 0:02:59]} 4. d4 {[%clk 0:03:00]}  cxd4 {[%clk 0:02:59]} 5. Nxd4 {[%clk 0:03:01]}  Nf6 {[%clk 0:03:00]} 6. Nc3 {[%clk 0:03:01]}  Bb4 {[%clk 0:02:58]} 7. Nxc6 {[%clk 0:03:02]}  dxc6 {[%clk 0:02:56]} 8. Qxd8+ {[%clk 0:03:02]}  Kxd8 {[%clk 0:02:57]} 9. e5 {[%clk 0:03:02]}  Ne4 {[%clk 0:02:56]} 10. a3 {[%clk 0:03:02]}  Bxc3+ {[%clk 0:02:54]} 11. bxc3 {[%clk 0:03:02]}  Nc5 {[%clk 0:02:53]} 12. Bg5+ {[%clk 0:02:51]}  Kc7 {[%clk 0:02:53]} 13. a4 {[%clk 0:02:42]}  a5 {[%clk 0:02:52]} 14. h4 {[%clk 0:02:40]}  h6 {[%clk 0:02:43]} 15. Be7 {[%clk 0:02:38]}  Nd7 {[%clk 0:02:39]} 16. Bd6+ {[%clk 0:02:37]}  Kd8 {[%clk 0:02:35]} 17. c5 {[%clk 0:02:36]}  f6 {[%clk 0:02:33]} 18. f4 {[%clk 0:02:33]}  b6 {[%clk 0:02:25]} 19. cxb6 {[%clk 0:02:20]}  Nxb6 {[%clk 0:02:22]} 20. Be2 {[%clk 0:02:08]}  Nd5 {[%clk 0:02:17]} 21. c4 {[%clk 0:01:50]}  Nxf4 {[%clk 0:02:14]} 22. exf6 {[%clk 0:01:46]}  Nxe2 {[%clk 0:02:03]} 23. f7 {[%clk 0:01:46]}  Nd4 {[%clk 0:01:43]} 24. Rd1 {[%clk 0:01:38]}  Nc2+ {[%clk 0:01:30]} 25. Kf2 {[%clk 0:01:26]}  Ba6 {[%clk 0:01:27]} 26. f8=Q+ {[%clk 0:01:13]}  Rxf8+ {[%clk 0:01:27]} 27. Bxf8+ {[%clk 0:01:13]}  Kc7 {[%clk 0:01:18]} 28. Bxg7 {[%clk 0:01:12]}  Bxc4 {[%clk 0:01:10]} 29. Bxh6 {[%clk 0:01:10]}  Nb4 {[%clk 0:01:08]} 30. Bg7 {[%clk 0:01:03]}  Nd3+ {[%clk 0:00:55]} 31. Ke3 {[%clk 0:01:01]}  Rg8 {[%clk 0:00:54]} 32. Rxd3 {[%clk 0:00:59]}  Bxd3 {[%clk 0:00:46]} 33. Be5+ {[%clk 0:00:57]}  Kb6 {[%clk 0:00:42]} 34. Kxd3 {[%clk 0:00:56]}  Rxg2 {[%clk 0:00:42]} 35. h5 {[%clk 0:00:56]}  Rg5 {[%clk 0:00:41]} 36. Ke4 {[%clk 0:00:55]} 1-0


[Site "https://www.chess.com"]

[Event "Titled Tuesday Blitz January 10 Early 2023"]
[White "Klukin, Kirill"]
[Black "Quinones Garcia, Santiago"]
[WhiteFideId "24199273"]
[BlackFideId "4408497"]
[WhiteElo "2390"]
[BlackElo "2248"]
[Result "0-1"]
[Round "01"]
[TimeControl "180+2"]
[Date "2023.01.10"]
[WhiteClock "0:00:17"]
[BlackClock "0:00:16"]

1. b3 {[%clk 0:02:57]}  e5 {[%clk 0:02:59]} 2. Bb2 {[%clk 0:02:57]}  Nc6 {[%clk 0:03:00]} 3. g3 {[%clk 0:02:57]}  Nf6 {[%clk 0:03:00]} 4. Bg2 {[%clk 0:02:57]}  Bd6 {[%clk 0:03:00]} 5. e3 {[%clk 0:02:58]}  O-O {[%clk 0:03:01]} 6. Ne2 {[%clk 0:02:58]}  Re8 {[%clk 0:03:01]} 7. O-O {[%clk 0:02:59]}  Bf8 {[%clk 0:03:01]} 8. d4 {[%clk 0:02:58]}  d5 {[%clk 0:03:00]} 9. Nd2 {[%clk 0:02:55]}  Bf5 {[%clk 0:02:56]} 10. c4 {[%clk 0:02:53]}  e4 {[%clk 0:02:36]} 11. Nc3 {[%clk 0:02:34]}  Nb4 {[%clk 0:02:31]} 12. cxd5 {[%clk 0:02:33]}  Nbxd5 {[%clk 0:02:24]} 13. Nc4 {[%clk 0:02:24]}  c6 {[%clk 0:02:18]} 14. Ne5 {[%clk 0:02:22]}  Bd6 {[%clk 0:02:16]} 15. Nxd5 {[%clk 0:02:13]}  Nxd5 {[%clk 0:02:13]} 16. a3 {[%clk 0:02:03]}  Re6 {[%clk 0:01:47]} 17. Qe2 {[%clk 0:01:47]}  Qc8 {[%clk 0:01:33]} 18. f3 {[%clk 0:01:46]}  exf3 {[%clk 0:01:13]} 19. Bxf3 {[%clk 0:01:47]}  Bxe5 {[%clk 0:01:03]} 20. Bxd5 {[%clk 0:01:32]}  cxd5 {[%clk 0:01:02]} 21. Rxf5 {[%clk 0:01:32]}  Bd6 {[%clk 0:00:41]} 22. Rxd5 {[%clk 0:01:30]}  Qc6 {[%clk 0:00:32]} 23. Rf5 {[%clk 0:01:24]}  Rae8 {[%clk 0:00:31]} 24. d5 {[%clk 0:01:21]}  Qc5 {[%clk 0:00:25]} 25. dxe6 {[%clk 0:00:59]}  Qxf5 {[%clk 0:00:25]} 26. exf7+ {[%clk 0:01:00]}  Qxf7 {[%clk 0:00:23]} 27. b4 {[%clk 0:00:48]}  b6 {[%clk 0:00:17]} 28. Bd4 {[%clk 0:00:48]}  Be5 {[%clk 0:00:17]} 29. Rf1 {[%clk 0:00:48]}  Qe6 {[%clk 0:00:14]} 30. Bxe5 {[%clk 0:00:10]}  Qxe5 {[%clk 0:00:15]} 31. Rf3 {[%clk 0:00:11]}  Qa1+ {[%clk 0:00:15]} 32. Kg2 {[%clk 0:00:09]}  h6 {[%clk 0:00:13]} 33. Qc4+ {[%clk 0:00:09]}  Kh8 {[%clk 0:00:13]} 34. Qf7 {[%clk 0:00:08]}  Rc8 {[%clk 0:00:08]} 35. e4 {[%clk 0:00:06]}  Qb2+ {[%clk 0:00:06]} 36. Kh3 {[%clk 0:00:05]}  Qe5 {[%clk 0:00:06]} 37. Qf8+ {[%clk 0:00:05]}  Rxf8 {[%clk 0:00:05]} 38. Rxf8+ {[%clk 0:00:05]}  Kh7 {[%clk 0:00:06]} 39. Rf4 {[%clk 0:00:06]}  Qc3 {[%clk 0:00:05]} 40. e5 {[%clk 0:00:03]}  Qxe5 {[%clk 0:00:05]} 41. a4 {[%clk 0:00:03]}  Qc3 {[%clk 0:00:05]} 42. b5 {[%clk 0:00:04]}  Qb3 {[%clk 0:00:05]} 43. Kg4 {[%clk 0:00:04]}  Kg6 {[%clk 0:00:05]} 44. h4 {[%clk 0:00:04]}  h5+ {[%clk 0:00:05]} 45. Kh3 {[%clk 0:00:05]}  Qc3 {[%clk 0:00:06]} 46. Kg2 {[%clk 0:00:05]}  Qa5 {[%clk 0:00:06]} 47. Kh3 {[%clk 0:00:06]}  a6 {[%clk 0:00:06]} 48. bxa6 {[%clk 0:00:06]}  Qxa6 {[%clk 0:00:07]} 49. Kg2 {[%clk 0:00:07]}  Qa5 {[%clk 0:00:07]} 50. Kh3 {[%clk 0:00:07]}  Qc5 {[%clk 0:00:08]} 51. Kg2 {[%clk 0:00:07]}  Qc2+ {[%clk 0:00:08]} 52. Kh3 {[%clk 0:00:08]}  Qd1 {[%clk 0:00:08]} 53. Kh2 {[%clk 0:00:08]}  Qe2+ {[%clk 0:00:08]} 54. Kh3 {[%clk 0:00:08]}  Qe1 {[%clk 0:00:08]} 55. Kg2 {[%clk 0:00:08]}  Qd2+ {[%clk 0:00:09]} 56. Kh3 {[%clk 0:00:07]}  Qxf4 {[%clk 0:00:09]} 57. gxf4 {[%clk 0:00:08]}  Kf5 {[%clk 0:00:09]} 58. Kg3 {[%clk 0:00:09]}  Ke4 {[%clk 0:00:10]} 59. f5 {[%clk 0:00:10]}  Kxf5 {[%clk 0:00:10]} 60. Kf3 {[%clk 0:00:10]}  g6 {[%clk 0:00:10]} 61. Ke3 {[%clk 0:00:10]}  Kg4 {[%clk 0:00:11]} 62. Kd4 {[%clk 0:00:11]}  Kxh4 {[%clk 0:00:11]} 63. Kc4 {[%clk 0:00:12]}  g5 {[%clk 0:00:11]} 64. Kb5 {[%clk 0:00:13]}  g4 {[%clk 0:00:12]} 65. Kxb6 {[%clk 0:00:14]}  g3 {[%clk 0:00:13]} 66. a5 {[%clk 0:00:14]}  g2 {[%clk 0:00:14]} 67. a6 {[%clk 0:00:15]}  g1=Q+ {[%clk 0:00:15]} 68. Kb7 {[%clk 0:00:16]}  Qa1 {[%clk 0:00:15]} 69. a7 {[%clk 0:00:16]}  Qxa7+ {[%clk 0:00:16]} 70. Kxa7 {[%clk 0:00:17]}  Kg3 {[%clk 0:00:16]} 0-1


[Site "https://www.chess.com"]

[Event "Titled Tuesday Blitz January 10 Early 2023"]
[White "Sargissyan, Sargis"]
[Black "Wagner, Dennis"]
[WhiteFideId "13303210"]
[BlackFideId "24650684"]
[WhiteElo "2234"]
[BlackElo "2595"]
[Result "0-1"]
[Round "01"]
[TimeControl "180+2"]
[Date "2023.01.10"]
[WhiteClock "0:00:03"]
[BlackClock "0:00:18"]

1. e4 {[%clk 0:03:00]}  c5 {[%clk 0:02:49]} 2. Nf3 {[%clk 0:03:00]}  d6 {[%clk 0:02:49]} 3. d4 {[%clk 0:03:00]}  cxd4 {[%clk 0:02:49]} 4. Nxd4 {[%clk 0:03:01]}  Nf6 {[%clk 0:02:50]} 5. Nc3 {[%clk 0:03:02]}  a6 {[%clk 0:02:50]} 6. f4 {[%clk 0:03:01]}  e5 {[%clk 0:02:50]} 7. Nf3 {[%clk 0:03:01]}  Nbd7 {[%clk 0:02:49]} 8. a4 {[%clk 0:02:59]}  Qc7 {[%clk 0:02:48]} 9. Bd3 {[%clk 0:02:59]}  Be7 {[%clk 0:02:48]} 10. O-O {[%clk 0:02:58]}  O-O {[%clk 0:02:49]} 11. Be3 {[%clk 0:02:50]}  Nc5 {[%clk 0:02:47]} 12. a5 {[%clk 0:02:38]}  Bd7 {[%clk 0:02:24]} 13. Qe2 {[%clk 0:02:24]}  Rfe8 {[%clk 0:02:14]} 14. Nd2 {[%clk 0:02:11]}  exf4 {[%clk 0:02:00]} 15. Bxf4 {[%clk 0:02:08]}  Bc6 {[%clk 0:02:00]} 16. Kh1 {[%clk 0:01:48]}  Rac8 {[%clk 0:01:38]} 17. Bg5 {[%clk 0:01:30]}  Nfd7 {[%clk 0:01:36]} 18. Qh5 {[%clk 0:00:47]}  Ne5 {[%clk 0:01:29]} 19. Be2 {[%clk 0:00:22]}  Bxg5 {[%clk 0:01:28]} 20. Qxg5 {[%clk 0:00:22]}  Qe7 {[%clk 0:01:27]} 21. Qg3 {[%clk 0:00:19]}  h6 {[%clk 0:01:25]} 22. Rf4 {[%clk 0:00:15]}  Qg5 {[%clk 0:01:24]} 23. Qxg5 {[%clk 0:00:13]}  hxg5 {[%clk 0:01:25]} 24. Rf2 {[%clk 0:00:13]}  f6 {[%clk 0:01:24]} 25. h3 {[%clk 0:00:13]}  Ne6 {[%clk 0:01:19]} 26. Nc4 {[%clk 0:00:10]}  Nd4 {[%clk 0:01:12]} 27. Nb6 {[%clk 0:00:10]}  Rcd8 {[%clk 0:01:10]} 28. Bd3 {[%clk 0:00:10]}  Ne6 {[%clk 0:01:02]} 29. Nbd5 {[%clk 0:00:10]}  Nc5 {[%clk 0:00:58]} 30. Rd1 {[%clk 0:00:10]}  Kf7 {[%clk 0:00:43]} 31. b4 {[%clk 0:00:09]}  Ne6 {[%clk 0:00:35]} 32. Kg1 {[%clk 0:00:09]}  Rc8 {[%clk 0:00:28]} 33. Nb6 {[%clk 0:00:09]}  Rcd8 {[%clk 0:00:27]} 34. Nbd5 {[%clk 0:00:08]}  Rh8 {[%clk 0:00:25]} 35. Rdf1 {[%clk 0:00:06]}  Rh6 {[%clk 0:00:23]} 36. Rf5 {[%clk 0:00:04]}  Rdh8 {[%clk 0:00:21]} 37. Be2 {[%clk 0:00:05]}  Nd4 {[%clk 0:00:19]} 38. Bd1 {[%clk 0:00:05]}  Nxf5 {[%clk 0:00:19]} 39. Rxf5 {[%clk 0:00:04]}  Rh4 {[%clk 0:00:18]} 40. Rf1 {[%clk 0:00:03]}  Bxd5 {[%clk 0:00:18]} 41. exd5 {[%clk 0:00:03]}  Rc4 {[%clk 0:00:18]} 0-1


[Site "https://www.chess.com"]

[Event "Titled Tuesday Blitz January 10 Early 2023"]
[White "Arabidze, Meri"]
[Black "Qashashvili, Alexandre"]
[WhiteFideId "13604040"]
[BlackFideId "13600842"]
[WhiteElo "2441"]
[BlackElo "2505"]
[Result "1-0"]
[Round "01"]
[TimeControl "180+2"]
[Date "2023.01.10"]
[WhiteClock "0:00:15"]
[BlackClock "0:00:01"]

1. Nf3 {[%clk 0:02:59]}  c6 {[%clk 0:03:00]} 2. g3 {[%clk 0:02:58]}  d5 {[%clk 0:03:01]} 3. Bg2 {[%clk 0:02:59]}  Nf6 {[%clk 0:03:01]} 4. O-O {[%clk 0:02:59]}  Bf5 {[%clk 0:03:01]} 5. b3 {[%clk 0:02:59]}  Qc8 {[%clk 0:03:02]} 6. Re1 {[%clk 0:02:58]}  Bh3 {[%clk 0:03:02]} 7. Bh1 {[%clk 0:02:58]}  h5 {[%clk 0:03:02]} 8. d3 {[%clk 0:02:51]}  h4 {[%clk 0:03:02]} 9. e4 {[%clk 0:02:51]}  hxg3 {[%clk 0:02:54]} 10. fxg3 {[%clk 0:02:50]}  dxe4 {[%clk 0:02:53]} 11. dxe4 {[%clk 0:02:43]}  Nbd7 {[%clk 0:02:41]} 12. e5 {[%clk 0:02:37]}  Nd5 {[%clk 0:02:39]} 13. c4 {[%clk 0:02:34]}  N5b6 {[%clk 0:02:34]} 14. e6 {[%clk 0:02:26]}  fxe6 {[%clk 0:02:30]} 15. Ng5 {[%clk 0:02:18]}  Bf5 {[%clk 0:01:39]} 16. Nc3 {[%clk 0:02:10]}  Nf6 {[%clk 0:01:33]} 17. Bf4 {[%clk 0:02:05]}  Qd7 {[%clk 0:01:29]} 18. Qxd7+ {[%clk 0:01:59]}  Nbxd7 {[%clk 0:01:30]} 19. Nxe6 {[%clk 0:01:49]}  Bxe6 {[%clk 0:01:25]} 20. Rxe6 {[%clk 0:01:50]}  Kf7 {[%clk 0:01:19]} 21. Re2 {[%clk 0:01:45]}  e5 {[%clk 0:01:16]} 22. Be3 {[%clk 0:01:40]}  Ng4 {[%clk 0:01:12]} 23. Rf1+ {[%clk 0:01:34]}  Ndf6 {[%clk 0:01:12]} 24. Ne4 {[%clk 0:01:23]}  Nxe3 {[%clk 0:01:08]} 25. Rxe3 {[%clk 0:01:22]}  Rd8 {[%clk 0:01:03]} 26. Bg2 {[%clk 0:01:17]}  Kg8 {[%clk 0:00:57]} 27. Re2 {[%clk 0:01:01]}  Nxe4 {[%clk 0:00:54]} 28. Bxe4 {[%clk 0:01:02]}  Bc5+ {[%clk 0:00:49]} 29. Kg2 {[%clk 0:01:02]}  Rf8 {[%clk 0:00:43]} 30. Rxf8+ {[%clk 0:01:01]}  Kxf8 {[%clk 0:00:40]} 31. Bg6 {[%clk 0:00:53]}  Bd4 {[%clk 0:00:27]} 32. Re1 {[%clk 0:00:50]}  Ke7 {[%clk 0:00:25]} 33. h4 {[%clk 0:00:41]}  Rf8 {[%clk 0:00:23]} 34. Re2 {[%clk 0:00:42]}  Ke6 {[%clk 0:00:20]} 35. g4 {[%clk 0:00:39]}  Rf4 {[%clk 0:00:17]} 36. Bf5+ {[%clk 0:00:38]}  Kf6 {[%clk 0:00:15]} 37. Kg3 {[%clk 0:00:34]}  g6 {[%clk 0:00:15]} 38. Bc8 {[%clk 0:00:34]}  b6 {[%clk 0:00:12]} 39. Bb7 {[%clk 0:00:33]}  c5 {[%clk 0:00:09]} 40. Be4 {[%clk 0:00:33]}  Kf7 {[%clk 0:00:08]} 41. h5 {[%clk 0:00:30]}  gxh5 {[%clk 0:00:08]} 42. gxh5 {[%clk 0:00:31]}  Kf6 {[%clk 0:00:08]} 43. h6 {[%clk 0:00:30]}  Rf1 {[%clk 0:00:05]} 44. h7 {[%clk 0:00:29]}  Kg7 {[%clk 0:00:06]} 45. Rh2 {[%clk 0:00:22]}  Kh8 {[%clk 0:00:04]} 46. Rh6 {[%clk 0:00:21]}  Rf4 {[%clk 0:00:04]} 47. Bg6 {[%clk 0:00:15]}  Rf8 {[%clk 0:00:02]} 48. Rh5 {[%clk 0:00:15]}  Kg7 {[%clk 0:00:01]} 49. Be4 {[%clk 0:00:15]} 1-0


[Site "https://www.chess.com"]

[Event "Titled Tuesday Blitz January 10 Early 2023"]
[White "Balint, Vilmos"]
[Black "Tatarinov, Dmitry"]
[WhiteFideId "718050"]
[BlackFideId "24160067"]
[WhiteElo "2169"]
[BlackElo "2310"]
[Result "0-1"]
[Round "01"]
[TimeControl "180+2"]
[Date "2023.01.10"]
[WhiteClock "0:02:19"]
[BlackClock "0:02:23"]

1. e4 {[%clk 0:02:59]}  e5 {[%clk 0:02:57]} 2. Nf3 {[%clk 0:02:58]}  Nc6 {[%clk 0:02:57]} 3. Bb5 {[%clk 0:02:58]}  Nf6 {[%clk 0:02:57]} 4. O-O {[%clk 0:02:57]}  Nxe4 {[%clk 0:02:57]} 5. Re1 {[%clk 0:02:57]}  Nd6 {[%clk 0:02:58]} 6. Nxe5 {[%clk 0:02:57]}  Be7 {[%clk 0:02:55]} 7. Nxc6 {[%clk 0:02:47]}  dxc6 {[%clk 0:02:54]} 8. Bf1 {[%clk 0:02:47]}  O-O {[%clk 0:02:54]} 9. d4 {[%clk 0:02:47]}  Bf5 {[%clk 0:02:52]} 10. c3 {[%clk 0:02:46]}  Qd7 {[%clk 0:02:50]} 11. Bd3 {[%clk 0:02:46]}  Rfe8 {[%clk 0:02:49]} 12. Bf4 {[%clk 0:02:43]}  Bf8 {[%clk 0:02:46]} 13. Bxf5 {[%clk 0:02:42]}  Rxe1+ {[%clk 0:02:44]} 14. Qxe1 {[%clk 0:02:42]}  Qxf5 {[%clk 0:02:45]} 15. Bg3 {[%clk 0:02:38]}  Re8 {[%clk 0:02:43]} 16. Qd1 {[%clk 0:02:39]}  Ne4 {[%clk 0:02:38]} 17. Nd2 {[%clk 0:02:38]}  Bd6 {[%clk 0:02:34]} 18. Nxe4 {[%clk 0:02:38]}  Qxe4 {[%clk 0:02:35]} 19. Qd2 {[%clk 0:02:29]}  h6 {[%clk 0:02:28]} 20. Kf1 {[%clk 0:02:26]}  Qd5 {[%clk 0:02:26]} 21. b3 {[%clk 0:02:23]}  c5 {[%clk 0:02:23]} 22. Bxd6 {[%clk 0:02:19]}  Qxd6 {[%clk 0:02:23]} 23. d5 {[%clk 0:02:19]}  Qxh2 {[%clk 0:02:23]} 0-1


[Site "https://www.chess.com"]